bitfinex/quotes_ETHUSD_20260107
["timestamp","ask_amount","ask_price","bid_price","bid_amount"]
[1767826128008,1.30571761,3153.1,3152.4,1.37372405]
[1767826128721,1.30571761,3153.0,3152.4,1.37372405]
[1767826129322,0.002,3153.9,3152.5,1.4054449]
[1767826129323,1.30571761,3153.4,3152.5,1.4054449]
[1767826129503,1.30571761,3153.5,3152.7,1.37372405]
[1767826130430,0.002,3153.1,3152.7,1.37372405]
[1767826134497,1.30771761,3153.1,3152.6,0.57277753]
[1767826134724,1.30771761,3153.1,3152.5,3.78]
[1767826134925,1.30571761,3153.0,3152.5,3.78]
[1767826135631,1.30571761,3153.0,3152.4,4.612]
[1767826141439,1.30571761,3153.0,3152.4,0.832]
[1767826142336,1.30571761,3153.0,3152.7,0.001]
[1767826142535,1.30571761,3153.0,3152.4,0.832]
[1767826143735,0.002,3153.1,3152.5,1.42901618]
[1767826145734,0.002,3153.1,3152.6,1.42901618]
[1767826147039,0.002,3153.1,3152.5,3.17199554]
[1767826147040,0.002,3153.1,3152.8,1.42901618]
[1767826157127,1.3813384,3153.1,3152.6,3.17197105]
[1767826157342,1.3813384,3153.1,3152.5,3.78]
[1767826159045,1.3793384,3152.9,3152.4,0.832]
[1767826166662,1.3793384,3152.9,3152.7,0.001]
[1767826166842,1.3793384,3152.9,3152.4,0.832]
[1767826178175,1.3793384,3152.9,3152.7,0.001]
[1767826178366,1.3793384,3152.9,3152.4,0.832]
[1767826178762,1.3793384,3152.9,3152.4,4.00418415]
[1767826184209,1.3793384,3152.9,3152.4,0.832]
[1767826189882,1.3793384,3152.9,3152.7,0.001]
[1767826190062,1.83462073,3152.9,3152.4,0.832]
[1767826193390,1.30126297,3152.8,3152.4,0.832]
[1767826201494,1.30126297,3152.8,3152.7,0.001]
[1767826201693,1.30126297,3152.8,3152.4,0.832]
[1767826209003,4.58792153,3153.0,3152.4,0.832]
[1767826209169,1.87531711,3152.9,3152.4,0.832]
[1767826209371,1.41632496,3152.8,3152.4,0.832]
[1767826209987,1.41632496,3152.7,3152.0,0.832]
[1767826210599,1.41632496,3152.7,3151.8,3.78]
[1767826210793,1.44802384,3152.7,3151.5,7.78505719]
[1767826211103,1.41632496,3152.5,3151.5,7.78505719]
[1767826211988,3.17218627,3152.4,3151.5,7.78505719]
[1767826212194,1.41632496,3152.3,3151.5,7.78505719]
[1767826212388,1.41632496,3152.3,3151.5,4.612]
[1767826212592,1.41632496,3152.2,3151.5,4.612]
[1767826214698,1.41632496,3152.2,3151.5,7.7850456]
[1767826214896,1.41632496,3152.1,3151.5,4.612]
[1767826216808,1.41632496,3152.0,3151.5,4.612]
[1767826217009,1.41632496,3152.0,3151.5,0.832]
[1767826217376,1.41632496,3151.9,3151.0,0.001]
[1767826218304,1.41632496,3151.7,3151.0,0.001]
[1767826220518,1.41632496,3151.5,3151.0,0.001]
[1767826221585,1.41632496,3151.5,3150.6,0.833]
[1767826222318,1.41632496,3151.5,3150.4,0.001]
[1767826222519,1.41632496,3151.3,3150.4,0.001]
[1767826223116,1.41632496,3151.1,3150.4,0.001]
[1767826225114,1.41632496,3150.9,3150.4,0.001]
[1767826225631,1.41632496,3150.9,3149.9,3.17465362]
[1767826225941,1.41632496,3150.7,3149.9,1.39163983]
[1767826226796,1.41632496,3150.5,3149.7,1.39163983]
[1767826227037,1.41632496,3150.3,3149.7,1.39163983]
[1767826227201,4.59068433,3150.3,3149.7,1.39163983]
[1767826227398,1.41632496,3150.2,3149.3,3.17526228]
[1767826227727,6.34871874,3150.3,3149.4,1.39163983]
[1767826228030,0.70236245,3150.2,3149.4,1.39163983]
[1767826229222,3.17450239,3150.1,3149.4,1.39163983]
[1767826229417,6.34900478,3150.1,3149.4,1.39163983]
[1767826231710,1.41632496,3150.0,3149.4,1.39163983]
[1767826232028,1.41632496,3150.0,3149.3,1.37980108]
[1767826232230,0.77653297,3149.9,3149.3,1.37980108]
[1767826232824,3.17480474,3149.8,3149.3,1.37980108]
[1767826233429,5.3501856,3149.9,3149.3,1.37980108]
[1767826233741,2.25140066,3149.8,3149.0,1.37980108]
[1767826233946,1.39891781,3149.7,3149.0,1.37980108]
[1767826234251,1.39891781,3149.7,3148.6,1.37980108]
[1767826234444,3.10975163,3149.7,3148.6,1.37980108]
[1767826234818,6.3502143,3149.5,3148.6,1.37980108]
[1767826235241,5.33273307,3149.4,3148.6,1.37980108]
[1767826236206,1.39891781,3149.3,3148.6,1.37980108]
[1767826236727,6.16573307,3149.4,3148.6,1.37980108]
[1767826236906,3.17530879,3149.3,3148.6,1.37980108]
[1767826237107,0.93410419,3149.2,3148.6,1.37980108]
[1767826238117,1.39891781,3149.1,3148.3,3.17622302]
[1767826238428,1.39891781,3149.1,3148.3,1.37980108]
[1767826238821,1.39891781,3149.1,3148.2,0.833]
[1767826238822,1.39891781,3149.0,3148.2,0.833]
[1767826239143,1.39891781,3148.4,3147.6,3.17695958]
[1767826239344,1.39891781,3148.4,3147.6,4.55676066]
[1767826239641,1.39891781,3148.4,3147.4,4.55699839]
[1767826240009,1.39891781,3148.4,3147.4,1.37980108]
[1767826240340,5.33273307,3148.5,3147.4,1.37980108]
[1767826240341,6.73165088,3148.1,3147.4,1.37980108]
[1767826240958,9.90817768,3148.1,3147.4,1.37980108]
[1767826241331,6.73165088,3148.5,3147.5,1.37980108]
[1767826241530,3.38537222,3148.8,3147.5,1.37980108]
[1767826241531,5.54221165,3148.8,3147.5,1.37980108]
[1767826241731,0.20947858,3148.8,3147.7,1.37980108]
[1767826241917,5.40737045,3149.2,3147.9,1.37980108]
[1767826242122,2.23191781,3149.2,3148.1,1.37980108]
[1767826242350,1.39891781,3149.2,3148.1,1.37980108]
[1767826242956,1.39891781,3149.1,3148.3,1.37980108]
[1767826243157,1.43061669,3149.0,3148.3,1.83542302]
[1767826243335,1.39891781,3149.0,3148.3,1.37980108]
[1767826248026,1.39891781,3148.8,3148.0,3.17661626]
[1767826248446,1.39891781,3148.8,3148.2,3.17636144]
[1767826248864,1.39891781,3148.8,3148.1,3.17647023]
[1767826249067,1.39891781,3148.8,3148.1,3.9436706]
[1767826250074,1.39891781,3148.8,3148.2,3.17640379]
[1767826250243,1.39891781,3148.8,3148.2,4.48898609]
[1767826250448,1.39891781,3148.8,3147.9,3.17669951]
[1767826250925,1.39891781,3148.8,3147.9,4.4861128]
[1767826251131,1.39891781,3148.4,3147.8,3.17676875]
[1767826251952,1.39891781,3148.4,3147.7,4.00987381]
[1767826252160,1.39891781,3148.4,3147.7,4.00986195]
[1767826253028,1.39891781,3148.4,3147.6,3.95041295]
[1767826253255,1.43061669,3148.4,3147.5,3.17710335]
[1767826253455,1.39891781,3148.4,3147.5,3.17710335]
[1767826253837,1.39891781,3148.4,3146.7,4.73336912]
[1767826253838,1.39891781,3148.3,3147.2,3.17742092]
[1767826254043,1.39891781,3148.0,3147.2,3.17742092]
[1767826254361,1.39891781,3148.0,3147.2,0.63549689]
[1767826254556,1.39891781,3148.0,3146.8,6.35566288]
[1767826255162,6.73165088,3148.4,3146.9,0.0317773]
[1767826255361,2.23291781,3148.4,3146.9,0.0317773]
[1767826255777,0.834,3148.4,3146.9,0.0317773]
[1767826256346,0.834,3148.4,3147.0,9.53288844]
[1767826256573,0.834,3148.4,3147.1,0.98824185]
[1767826257777,2.23291781,3148.4,3147.1,0.98824185]
[1767826257970,0.834,3148.4,3147.1,0.98824185]
[1767826258272,2.23291781,3148.4,3147.2,9.53228265]
[1767826258474,1.39891781,3148.9,3147.3,1.61709902]
[1767826258652,3.17438702,3150.3,3147.5,5.33273307]
[1767826258653,1.39891781,3149.1,3147.5,5.33273307]
[1767826258848,0.835,3149.0,3147.6,0.03177023]
[1767826259056,0.835,3149.0,3147.7,0.53645033]
[1767826259257,0.835,3149.0,3147.8,0.03176821]
[1767826260082,0.001,3149.0,3147.8,0.03176821]
[1767826260377,0.001,3149.0,3147.9,9.53016294]
[1767826260549,0.001,3149.0,3148.0,0.0317662]
[1767826260748,0.67415174,3149.5,3148.1,0.95619291]
[1767826260951,0.67415174,3149.5,3148.2,0.03176418]
[1767826261171,2.07306955,3149.5,3148.2,0.86576418]
[1767826261346,0.001,3148.7,3148.2,0.86576418]
[1767826261547,1.39691968,3149.4,3148.3,0.18219571]
[1767826262377,1.39691968,3149.4,3148.4,6.35243298]
[1767826266806,0.834,3149.8,3148.4,6.35243298]
[1767826266955,1.31080163,3149.7,3148.4,6.35243298]
[1767826267364,1.31080163,3149.7,3148.4,9.52864947]
[1767826267574,4.48571974,3149.7,3148.5,0.97108452]
[1767826267764,1.31080163,3149.6,3148.5,0.97108452]
[1767826268066,1.31080163,3149.6,3148.5,1.00284567]
[1767826269294,1.31080163,3149.9,3148.6,6.35202946]
[1767826269457,1.31080163,3149.8,3148.7,0.73548751]
[1767826270493,1.31080163,3149.8,3148.8,3.175813]
[1767826270699,1.31080163,3149.7,3148.7,3.91137329]
[1767826270879,1.31080163,3149.5,3148.7,3.91137329]
[1767826271593,0.03169888,3149.6,3148.7,3.91137329]
[1767826271887,1.34250051,3149.6,3148.7,3.91137329]
[1767826272466,4.51754284,3149.6,3148.7,0.73548751]
[1767826272661,1.31080163,3149.5,3148.7,0.73548751]
[1767826273068,1.31080163,3149.5,3148.7,0.73748751]
[1767826273277,1.31180163,3149.5,3148.7,0.73748751]
[1767826273476,1.31180163,3149.5,3148.7,0.002]
[1767826273881,1.31180163,3149.5,3148.7,3.17790577]
[1767826274899,1.31180163,3149.5,3148.7,0.002]
[1767826275067,1.31080163,3149.3,3148.7,0.002]
[1767826278794,1.31080163,3149.2,3148.7,0.002]
[1767826281398,1.31080163,3149.1,3148.7,0.002]
[1767826281972,0.45178111,3149.2,3148.7,0.002]
[1767826282799,1.76258274,3149.2,3148.7,0.002]
[1767826283496,0.45178111,3149.2,3148.7,0.002]
[1767826285498,0.45178111,3149.2,3149.0,0.002]
[1767826286195,0.45178111,3149.2,3148.7,0.002]
[1767826286582,1.76258274,3149.2,3148.7,0.002]
[1767826287100,1.31080163,3149.0,3148.7,0.002]
[1767826287299,1.30880163,3149.0,3148.7,0.002]
[1767826287598,0.49378934,3149.1,3148.7,0.002]
[1767826289403,1.31080163,3149.0,3148.7,0.002]
[1767826291776,0.49378934,3149.1,3148.7,0.002]
[1767826292506,1.36892366,3149.0,3148.7,0.002]
[1767826293903,1.36892366,3149.0,3148.4,0.002]
[1767826293904,1.36892366,3148.8,3148.4,0.002]
[1767826294108,1.36892366,3148.7,3147.8,3.78]
[1767826294280,1.36892366,3148.7,3147.7,3.78]
[1767826294607,1.36892366,3148.7,3147.6,3.17698458]
[1767826295284,1.36892366,3148.7,3147.5,3.17708711]
[1767826295607,1.36892366,3148.4,3147.4,0.002]
[1767826297593,1.36892366,3148.2,3147.4,0.002]
[1767826299715,1.36892366,3148.1,3147.4,0.002]
[1767826301795,1.36692366,3148.1,3147.4,0.002]
[1767826304691,1.36892366,3148.0,3147.4,0.002]
[1767826304889,1.36892366,3147.9,3147.4,0.002]
[1767826306198,1.36892366,3147.8,3147.4,0.002]
[1767826307126,1.36892366,3147.8,3146.5,3.17805548]
[1767826307127,1.36892366,3147.4,3144.8,3.339]
[1767826307329,5.46644894,3147.7,3143.4,1.8445294]
[1767826307330,1.36892366,3146.8,3144.7,0.834]
[1767826307491,5.33644894,3147.0,3145.2,3.1794045]
[1767826307492,1.36892366,3146.6,3145.2,3.1794045]
[1767826307693,0.834,3146.6,3145.3,0.03179346]
[1767826307893,1.36892366,3146.4,3145.4,0.9570094]
[1767826308120,1.36892366,3146.4,3145.4,3.17923113]
[1767826309223,1.36892366,3146.4,3145.4,3.17919772]
[1767826309429,1.36892366,3146.3,3145.4,3.17919772]
[1767826309637,1.36892366,3146.3,3145.7,0.002]
[1767826310511,1.36892366,3146.2,3145.7,0.002]
[1767826311429,1.36892366,3146.2,3145.4,0.002]
[1767826311430,1.36892366,3146.0,3145.4,0.002]
[1767826312598,1.36892366,3145.8,3144.7,6.35990714]
[1767826313307,1.36892366,3145.7,3144.7,5.86040714]
[1767826313519,1.36892366,3145.7,3144.7,2.68045357]
[1767826313728,1.36892366,3145.5,3144.7,2.68045357]
[1767826314625,1.36892366,3145.5,3144.4,6.36051392]
[1767826316732,1.36892366,3145.5,3144.4,3.18025696]
[1767826317458,1.36892366,3145.5,3144.4,3.21205952]
[1767826318779,1.36892366,3145.5,3144.4,6.39231648]
[1767826318932,1.36892366,3145.5,3144.4,10.58143382]
[1767826319130,0.22029237,3145.6,3144.4,10.58143382]
[1767826319448,1.36892366,3145.7,3144.4,10.58143382]
[1767826319610,1.36892366,3146.2,3144.5,0.08900757]
[1767826320107,1.36892366,3146.2,3145.7,0.01349512]
[1767826320984,1.36892366,3146.6,3145.8,3.17884163]
[1767826321157,0.834,3146.7,3145.8,3.17884163]
[1767826321158,1.36892366,3146.4,3145.8,3.17884163]
[1767826322100,0.001,3145.9,3145.8,3.17884163]
[1767826322467,1.36892366,3146.4,3145.8,3.17884163]
[1767826322988,1.144,3150.8,3145.8,3.17884163]
[1767826322989,1.32461355,3146.6,3145.8,6.35768326]
[1767826324169,1.32461355,3147.2,3145.8,9.53652489]
[1767826324440,1.32461355,3147.9,3145.9,2.42055522]
[1767826324568,1.32461355,3147.8,3145.9,2.42055522]
[1767826324987,1.32461355,3147.7,3146.0,9.53591862]
[1767826326000,1.32461355,3147.5,3146.0,6.35727908]
[1767826326301,0.03169888,3147.6,3146.0,7.22616175]
[1767826326302,1.32461355,3147.3,3146.0,7.22616175]
[1767826326479,1.32461355,3147.1,3146.0,7.22616175]
[1767826329125,3.17724237,3147.4,3146.0,7.22616175]
[1767826329126,1.32461355,3147.4,3146.0,7.22616175]
[1767826329282,1.32461355,3147.9,3146.1,0.89502375]
[1767826329482,1.32461355,3147.9,3146.3,0.08900757]
[1767826329682,1.32461355,3147.9,3146.4,0.834]
[1767826331322,1.32461355,3147.9,3146.6,12.71213372]
[1767826331514,1.32461355,3148.4,3146.7,0.08900757]
[1767826331710,1.32461355,3148.4,3146.8,1.28011413]
[1767826331915,1.32461355,3148.4,3146.9,0.834]
[1767826332424,1.32461355,3148.4,3146.9,4.614]
[1767826332625,1.32461355,3148.2,3146.9,4.614]
[1767826333431,1.32461355,3148.2,3147.0,6.35525896]
[1767826333597,1.32461355,3148.2,3147.1,1.0969259]
[1767826333793,1.32461355,3148.0,3147.1,1.0969259]
[1767826334500,0.001,3147.6,3147.1,1.0969259]
[1767826335124,1.32461355,3149.0,3147.3,0.08900757]
[1767826335303,1.32461355,3148.9,3147.5,9.5313741]
[1767826335798,1.32461355,3148.9,3147.5,12.7084988]
[1767826337838,1.32461355,3148.9,3147.5,9.5313741]
[1767826338008,1.32461355,3148.8,3147.6,0.834]
[1767826338329,1.32461355,3148.8,3147.7,0.834]
[1767826338542,1.32461355,3148.7,3147.7,1.55282494]
[1767826340038,1.32461355,3148.7,3147.8,3.1768219]
[1767826340236,1.32461355,3148.5,3147.8,4.0108219]
[1767826340536,1.32461355,3148.5,3147.8,3.1768219]
[1767826340908,1.32461355,3148.4,3147.8,4.0108219]
[1767826345510,1.32461355,3148.4,3147.8,0.834]
[1767826346141,0.001,3148.1,3147.8,0.834]
[1767826346539,0.001,3148.1,3147.8,4.0108101]
[1767826347843,1.32561355,3148.1,3147.8,0.834]
[1767826348013,1.32561355,3148.1,3147.8,4.01081589]
[1767826350044,1.32361451,3149.0,3147.8,14.6380655]
[1767826350341,1.32061735,3149.2,3147.9,0.03170565]
[1767826350542,0.99662305,3149.2,3148.3,0.09552878]
[1767826350716,0.83107912,3149.2,3148.4,0.834]
[1767826350912,0.83107912,3149.2,3148.4,1.09603658]
[1767826352419,0.83107912,3149.2,3148.5,6.35223122]
[1767826352623,0.83107912,3149.2,3148.6,0.42689751]
[1767826353648,0.83107912,3149.2,3148.7,3.17591386]
[1767826355448,0.001,3149.5,3148.7,3.17591386]
[1767826355628,1.27412798,3149.4,3148.7,7.18582772]
[1767826357645,1.11627783,3149.4,3148.7,7.18582772]
[1767826357843,1.11527877,3149.4,3148.9,3.17571215]
[1767826362261,9.4e-07,3149.5,3148.9,4.41123601]
[1767826362462,9.4e-07,3149.5,3148.9,7.58694816]
[1767826363075,9.4e-07,3149.5,3149.0,1.23552386]
[1767826364771,1.27412798,3150.3,3149.2,1.23552386]
[1767826364963,1.27412798,3150.3,3149.3,0.833]
[1767826365272,1.27412798,3150.3,3149.4,0.20685239]
[1767826365567,1.27412798,3150.3,3149.4,7.5859398]
[1767826366258,1.27412798,3150.3,3149.5,1.23552386]
[1767826367865,1.27412798,3150.6,3149.7,1.23552386]
[1767826368065,1.27412798,3150.6,3149.8,2.06852386]
[1767826368270,1.27412798,3150.6,3149.9,1.23552386]
[1767826369378,1.27412798,3150.6,3149.9,4.41021076]
[1767826369679,0.001,3150.3,3149.9,4.41021076]
[1767826372094,0.001,3150.3,3150.0,1.23357402]
[1767826372983,0.001,3150.3,3150.0,2.0751777]
[1767826373164,0.001,3150.3,3150.1,1.23308453]
[1767826373954,9.5e-07,3150.3,3150.1,4.40749418]
[1767826374189,1.27013269,3150.8,3150.1,4.40749418]
[1767826377059,1.27412798,3151.0,3150.2,1.23525753]
[1767826378213,0.002,3151.2,3150.4,1.23481005]
[1767826378693,3.17543862,3151.2,3150.4,1.23481005]
[1767826379095,4.4495666,3151.2,3150.4,1.23481005]
[1767826380202,4.4495666,3151.2,3150.5,1.23392607]
[1767826380402,1.27612798,3151.2,3150.5,1.23392607]
[1767826382071,1.27612798,3151.2,3150.5,1.23220662]
[1767826382276,0.002,3150.9,3150.5,1.23220662]
[1767826382901,0.002,3150.9,3150.6,0.44063818]
[1767826383098,0.00100094,3151.2,3150.7,1.23179217]
[1767826384603,0.00100094,3151.2,3150.8,0.833]
[1767826387915,0.00100094,3151.2,3150.8,4.00679211]
[1767826389577,1.89e-06,3151.2,3150.8,3.17379211]
[1767826389777,1.28784203,3151.2,3150.9,0.31737921]
[1767826390310,1.89e-06,3151.2,3150.9,0.31737921]
[1767826392008,1.89e-06,3151.2,3150.9,3.49098776]
[1767826393922,1.89e-06,3151.2,3150.9,4.71854272]
[1767826394214,1.89e-06,3151.2,3151.0,5.27366824]
[1767826394534,1.89e-06,3151.2,3151.1,1.22855496]
[1767826394708,1.89e-06,3151.2,3151.1,0.001]
[1767826394889,0.002,3151.5,3151.1,0.001]
[1767826394890,1.28784391,3151.5,3151.1,0.001]
[1767826397788,3.77e-06,3151.5,3151.1,0.001]
[1767826397995,3.77e-06,3151.5,3151.2,0.40471133]
[1767826401318,1.28584203,3152.3,3151.6,1.22510416]
[1767826401518,1.28984014,3152.5,3151.6,1.22510416]
[1767826401817,0.002,3152.8,3152.1,1.22677491]
[1767826401818,1.12884014,3152.7,3152.1,1.22677491]
[1767826401982,1.13229251,3153.2,3152.1,1.22677491]
[1767826402182,1.13229251,3153.2,3152.2,1.48073878]
[1767826403813,1.28784014,3153.0,3152.3,1.27476129]
[1767826405314,3.17138882,3153.2,3152.4,1.27476129]
[1767826405315,1.28784014,3153.2,3152.4,1.27476129]
[1767826405922,1.28784014,3153.2,3152.5,1.27576129]
[1767826406302,1.28784014,3153.2,3152.5,2.10876129]
[1767826406504,1.28784014,3153.2,3152.6,0.21087613]
[1767826407792,4.45932217,3153.1,3152.6,0.21087613]
[1767826409420,1.28784014,3153.0,3152.6,0.21087613]
[1767826409906,1.28784014,3153.0,3152.5,0.834]
[1767826410107,1.28784014,3153.0,3152.5,0.001]
[1767826411624,4.45952335,3152.9,3152.5,0.001]
[1767826412408,1.26282987,3152.8,3152.5,0.001]
[1767826413428,4.43463092,3152.8,3152.5,0.001]
[1767826413629,3.17180105,3152.8,3152.5,0.001]
[1767826413831,3.17172951,3152.9,3152.5,0.001]
[1767826414029,4.43455938,3152.9,3152.5,0.001]
[1767826414617,7.60628889,3152.9,3152.5,0.001]
[1767826414806,7.60628889,3152.9,3152.3,1.99195996]
[1767826415131,1.26282987,3152.8,3151.4,1.15895996]
[1767826415305,1.26282987,3151.9,3151.2,1.56367129]
[1767826415506,1.26282987,3151.7,3151.1,0.001]
[1767826417717,1.26282987,3151.5,3151.1,0.001]
[1767826418736,1.26282987,3151.5,3150.8,0.833]
[1767826419828,1.26282987,3151.3,3150.8,0.833]
[1767826420136,1.26282987,3151.3,3150.8,1.032196]
[1767826420331,1.26282987,3151.3,3150.8,0.833]
[1767826421836,1.26282987,3151.3,3150.5,4.32714663]
[1767826422138,1.26282987,3151.3,3150.8,0.833]
[1767826422339,1.26282987,3151.2,3150.8,0.833]
[1767826422634,1.26282987,3151.2,3150.6,0.833]
[1767826423133,1.26282987,3151.2,3150.3,4.33324289]
[1767826423335,3.17349497,3151.1,3150.5,0.833]
[1767826423540,1.26282987,3151.0,3150.4,1.26632429]
[1767826426236,1.26282987,3151.0,3150.4,2.42528425]
[1767826426441,1.26282987,3151.0,3150.4,1.26632429]
[1767826427846,1.26282987,3150.9,3150.4,1.26632429]
[1767826429947,1.26282987,3150.8,3150.7,0.001]
[1767826430144,1.26282987,3150.8,3150.3,3.78]
[1767826430145,1.26282987,3150.8,3150.3,4.613]
[1767826430351,1.26282987,3150.8,3150.3,5.0743]
[1767826431553,1.26282987,3150.8,3150.3,1.2943]
[1767826433058,1.26282987,3150.7,3150.3,1.2943]
[1767826434554,1.26282987,3150.7,3150.3,0.833]
[1767826435132,1.26082988,3150.7,3150.3,0.833]
[1767826436755,4.43657336,3150.9,3150.3,0.833]
[1767826437852,3.17353206,3151.1,3150.4,1.15895996]
[1767826438058,3.17353206,3151.1,3150.4,1.16834637]
[1767826438260,3.17353206,3151.1,3150.5,1.67652163]
[1767826439359,4.43636193,3151.1,3150.5,1.67652163]
[1767826439541,4.43636193,3151.1,3150.5,1.15895996]
[1767826441642,4.43636193,3151.1,3150.6,0.001]
[1767826442041,0.002,3150.8,3150.6,0.001]
[1767826446774,4.33783531,3151.1,3150.6,0.001]
[1767826447337,0.002,3151.1,3150.6,1.19410086]
[1767826447639,1.16130419,3151.8,3151.0,1.19310086]
[1767826448066,1.16130419,3151.8,3151.1,0.20261009]
[1767826448469,1.16130419,3151.8,3150.9,0.833]
[1767826448963,1.1699289,3151.6,3150.9,4.00664835]
[1767826451277,1.1699289,3151.6,3150.9,4.02076992]
[1767826452076,1.1699289,3151.6,3150.9,5.18861349]
[1767826453746,1.1699289,3151.6,3150.9,4.00664835]
[1767826453952,1.1699289,3151.6,3151.0,0.71804194]
[1767826456983,1.1699289,3151.6,3151.0,5.07357464]
[1767826458065,1.1699289,3151.6,3151.0,8.85357464]
[1767826458264,8.49886856,3152.4,3151.2,1.18196514]
[1767826458265,0.002,3152.4,3151.2,1.18196514]
[1767826458483,0.002,3152.4,3151.4,1.18196514]
[1767826458790,0.002,3152.4,3151.6,1.18196514]
[1767826458989,1.1719289,3152.4,3151.6,1.18196514]
[1767826459895,0.002,3152.4,3151.6,1.18196514]
[1767826460083,0.002,3152.4,3151.7,2.21646165]
[1767826460259,0.002,3152.4,3151.8,1.18196514]
[1767826460461,0.002,3152.4,3151.9,3.17268948]
[1767826460971,1.16892983,3153.2,3152.4,1.18196514]
[1767826461199,1.16892983,3153.2,3152.4,2.01496514]
[1767826461359,1.16892983,3153.2,3152.5,0.20149651]
[1767826461858,1.16892983,3153.2,3152.4,0.833]
[1767826462495,1.16892983,3153.2,3152.5,3.17208564]
[1767826463682,1.1719289,3153.7,3152.6,1.18196514]
[1767826464179,1.1699289,3153.6,3152.6,1.18196514]
[1767826464380,1.1699289,3153.6,3152.7,1.93457878]
[1767826464564,1.1699289,3153.6,3152.8,1.18196514]
[1767826464766,1.1699289,3153.6,3153.0,1.18196514]
[1767826465293,4.34093336,3153.6,3153.0,1.18196514]
[1767826465477,1.1699289,3153.5,3152.9,0.833]
[1767826465660,1.1699289,3153.5,3152.9,1.03449651]
[1767826466960,4.34100897,3153.5,3152.9,1.03449651]
[1767826467156,1.1699289,3153.4,3152.9,1.03449651]
[1767826468793,1.1699289,3153.4,3152.9,0.833]
[1767826470361,1.1699289,3153.3,3152.9,0.833]
[1767826472863,1.1699289,3153.3,3152.7,0.001]
[1767826474391,1.21183679,3153.2,3152.7,0.001]
[1767826475395,4.38306156,3153.4,3152.7,1.28583448]
[1767826475578,1.21183679,3153.4,3152.7,1.28583448]
[1767826476594,1.21183679,3153.4,3152.7,0.001]
[1767826481391,1.21183679,3153.3,3152.7,0.001]
[1767826483274,1.21183679,3153.3,3152.7,0.52997918]
[1767826484402,1.21183679,3153.3,3152.7,4.30997918]
[1767826487806,1.21183679,3153.3,3152.7,0.52997918]
[1767826488107,4.38128998,3153.3,3152.6,1.28483448]
[1767826488495,1.209997,3153.3,3152.6,4.45681284]
[1767826488897,1.209997,3153.3,3152.7,1.28483448]
[1767826489578,1.209997,3153.3,3152.9,0.001]
[1767826489980,1.21183679,3153.5,3152.9,0.001]
[1767826491982,1.21183679,3153.3,3152.9,0.001]
[1767826494411,1.21183679,3153.2,3152.9,0.001]
[1767826495716,1.21183679,3153.4,3152.9,0.001]
[1767826496187,4.38302249,3153.4,3152.9,0.001]
[1767826496989,1.21183679,3153.4,3152.9,0.001]
[1767826498312,3.17112063,3153.5,3152.9,1.28583448]
[1767826498516,1.21183679,3153.4,3152.9,0.001]
[1767826499914,1.74431563,3153.6,3152.9,1.28583448]
[1767826500106,4.91530057,3153.6,3152.9,1.28583448]
[1767826501398,4.91530057,3153.6,3153.2,0.001]
[1767826501613,3.70346378,3153.6,3153.2,0.001]
[1767826501802,0.002,3153.3,3153.2,0.001]
[1767826509436,0.002,3153.3,3153.2,1.20341129]
[1767826509614,0.002,3153.3,3153.2,0.001]
[1767826515530,1.25800136,3153.3,3152.9,0.001]
[1767826526352,1.25800136,3153.3,3153.2,0.001]
[1767826526551,1.25800136,3153.3,3152.9,0.001]
[1767826527046,0.002,3153.6,3152.9,0.001]
[1767826527251,1.25600136,3153.5,3152.9,0.001]
[1767826527864,1.25600136,3153.5,3152.7,4.612]
[1767826528050,1.25600136,3153.3,3152.7,4.612]
[1767826528552,1.25600136,3153.3,3152.7,0.832]
[1767826529066,1.25600136,3153.1,3152.7,0.832]
[1767826529371,1.25600136,3153.1,3152.5,4.612]
[1767826529534,1.25600136,3153.1,3152.3,3.17224048]
[1767826529535,1.25600136,3153.1,3152.4,3.78]
[1767826529873,1.25600136,3153.1,3152.4,4.79246095]
[1767826530052,1.25600136,3153.1,3152.5,0.832]
[1767826535683,1.22405086,3153.0,3152.4,9.16705463]
[1767826535852,1.22405086,3153.0,3152.5,0.832]
[1767826536264,1.22405086,3153.2,3152.5,2.01667491]
[1767826536465,1.22405086,3153.2,3152.6,0.99813183]
[1767826538086,1.22405086,3153.2,3152.8,0.001]
[1767826542200,1.22405086,3153.1,3152.8,0.001]
[1767826542390,1.22405086,3153.1,3152.2,1.18467491]
[1767826542701,1.22405086,3153.1,3152.2,1.18346645]
[1767826542900,1.22405086,3153.0,3151.7,1.38617142]
[1767826543102,1.22405086,3152.8,3151.5,1.18467491]
[1767826543271,1.22405086,3152.6,3151.6,3.66940095]
[1767826544168,1.22405086,3152.4,3151.6,0.49646749]
[1767826544374,1.22405086,3152.4,3151.5,1.18467491]
[1767826544603,3.17158261,3153.0,3151.5,1.18467491]
[1767826544900,6.34316522,3153.0,3151.7,1.18467491]
[1767826545082,7.56721608,3153.0,3151.9,1.18467491]
[1767826545281,1.22405086,3152.9,3152.1,1.18467491]
[1767826545971,4.39583467,3152.8,3152.1,1.18467491]
[1767826547702,1.22405086,3152.7,3152.1,1.18467491]
[1767826548703,1.22405086,3152.7,3151.7,3.17285221]
[1767826549012,1.22405086,3152.7,3151.8,0.31728765]
[1767826549878,1.22405086,3152.5,3151.8,1.50196256]
[1767826550118,1.22405086,3152.5,3152.4,0.001]
[1767826550279,3.17198502,3152.6,3151.9,1.18467491]
[1767826551314,4.39603588,3152.6,3151.9,1.18467491]
[1767826551991,1.22405086,3152.5,3151.7,3.17284149]
[1767826552314,1.22405086,3152.5,3151.7,4.3575164]
[1767826552602,1.22405086,3152.5,3151.8,0.43575164]
[1767826554280,1.22405086,3152.4,3151.8,0.43575164]
[1767826554915,1.22405086,3152.4,3151.8,1.62042655]
[1767826556504,1.22405086,3152.6,3151.9,1.18467491]
[1767826556703,1.22405086,3152.6,3151.8,3.60852787]
[1767826556907,1.22405086,3152.6,3151.8,4.79320278]
[1767826557709,1.22405086,3152.6,3151.8,1.62042655]
[1767826557888,1.22405086,3152.6,3151.8,0.43575164]
[1767826558091,1.22405086,3152.6,3151.7,3.17284028]
[1767826558507,1.22405086,3152.4,3151.6,4.35761583]
[1767826558812,1.22405086,3152.4,3151.6,3.17294092]
[1767826560316,1.22405086,3152.4,3151.5,6.95306675]
[1767826560617,3.1722869,3152.3,3151.5,8.13774166]
[1767826560817,1.22405086,3152.2,3151.5,8.13774166]
[1767826561016,1.22405086,3152.2,3151.5,9.31496221]
[1767826561219,1.22405086,3152.2,3151.5,8.1302873]
[1767826561516,1.22405086,3152.2,3151.5,4.95722055]